lending/lending_fUSD_20251116
["ID","MTS","AMOUNT","RATE_DAILY","PERIOD"]
[394098116,1763277046959,-243.601037,0.00017808,2]
[394098117,1763277046968,-151.0,0.00017808,2]
[394098118,1763277046977,-151.0,0.00017808,2]
[394098119,1763277046987,-151.0,0.00017808,2]
[394098120,1763277046996,-7.24188965,0.00017808,2]
[394098121,1763277047126,-266.0,0.00016978,2]
[394098122,1763277047135,-31.611,0.00017178,2]
[394098123,1763277047152,-330.949,0.00017178,2]
[394098124,1763277047161,-236.35914735,0.00017808,2]
[394098125,1763277047170,-151.0,0.00017808,2]
[394098126,1763277047179,-151.0,0.00017808,2]
[394098127,1763277047188,-151.0,0.00017808,2]
[394098128,1763277047197,-243.601037,0.00017808,2]
[394098129,1763277047207,-151.0,0.00017808,2]
[394098130,1763277047216,-151.0,0.00017808,2]
[394098131,1763277047225,-163.244908,0.00017808,2]
[394098132,1763277047235,-167.590934,0.00017808,2]
[394098133,1763277047244,-151.0,0.00017808,2]
[394098134,1763277047253,-151.0,0.00017808,2]
[394098135,1763277047263,-243.601037,0.00017808,2]
[394098136,1763277047272,-151.0,0.00017808,2]
[394098137,1763277047281,-151.0,0.00017808,2]
[394098138,1763277047290,-212.7269469,0.00017808,2]
[394098139,1763277060257,424.1722297,0.00030136,120]
[394098142,1763277100806,203.58772095,0.0003,120]
[394098143,1763277123890,1107.65257899,0.00030136,120]
[394098156,1763277202350,235.80309013,0.000301,120]
[394098166,1763277502695,10000.01,0.00015,2]
[394098167,1763277502719,10000.01,0.00015,2]
[394098168,1763277502741,10000.01,0.00015,2]
[394098169,1763277502763,10000.01,0.00015,2]
[394098170,1763277502787,10000.01,0.00015,2]
[394098171,1763277502809,3136.07120814,0.00015,2]
[394098172,1763277563385,678.89377749,0.00015,2]
[394098179,1763277691999,261.4,0.00030137,120]
[394098188,1763277872942,1000.0,0.0003,120]
[394098192,1763277990095,154.08613491,0.00015,2]
[394098231,1763278087465,1800.645832,7.945e-05,2]
[394098243,1763278140378,150.0,0.00030136,120]
[394098251,1763278231785,-166.65,0.00015724,2]
[394098252,1763278231796,-275.03914908,0.00015987,2]
[394098253,1763278231807,-579.59285092,0.00015987,2]
[394098254,1763278231817,-250.0,0.00015994,2]
[394098255,1763278231826,-789.96956322,0.00016,3]
[394098256,1763278231835,-150.0,0.000162,2]
[394098257,1763278231844,-300.0,0.00016213,2]
[394098258,1763278231855,-278.01756258,0.00016213,2]
[394098259,1763278231961,-329.14926267,0.00016213,2]
[394098260,1763278232011,-592.83317475,0.00016213,2]
[394098261,1763278232020,-300.0,0.00016213,2]
[394098262,1763278232030,-6323.2258,0.00016214,2]
[394098263,1763278232040,-280.2791,0.00016214,2]
[394098264,1763278232049,-1000.0,0.00016214,2]
[394098265,1763278232059,-2500.0,0.00016214,2]
[394098266,1763278232068,-77229.3174,0.00016214,2]
[394098267,1763278232078,-550.0,0.00016272,2]
[394098268,1763278232087,-214.77429912,0.00016273,2]
[394098269,1763278232096,-8772.60011402,0.00016273,2]
[394098270,1763278232106,-13983.50017421,0.00016273,2]
[394098271,1763278232115,-5192.85957842,0.000163,2]
[394098272,1763278232125,-151.0,0.00016304,2]
[394098273,1763278232134,-151.0,0.00016304,2]
[394098274,1763278232143,-151.0,0.00016304,2]
[394098275,1763278232152,-151.0,0.00016304,2]
[394098276,1763278232163,-151.0,0.00016304,2]
[394098277,1763278232180,-151.0,0.00016304,2]
[394098279,1763278232189,-151.0,0.00016304,2]
[394098280,1763278232199,-151.0,0.00016304,2]
[394098281,1763278232208,-176.29665512,0.00016304,2]
[394098282,1763278232217,-506.31193346,0.00016313,2]
[394098283,1763278232226,-500.0,0.00016313,2]
[394098284,1763278232235,-509.11266745,0.00016313,2]
[394098285,1763278232244,-500.0,0.00016313,2]
[394098286,1763278232254,-157.36092978,0.00016313,2]
[394098287,1763278232263,-460.10931882,0.00016313,2]
[394098288,1763278232272,-500.0,0.00016313,2]
[394098289,1763278232282,-500.0,0.00016313,2]
[394098290,1763278232291,-577.50398757,0.00016313,2]
[394098291,1763278232300,-502.58848163,0.00016313,2]
[394098292,1763278232310,-625.92607585,0.00016313,2]
[394098293,1763278232319,-500.0,0.00016313,2]
[394098294,1763278232328,-500.0,0.00016313,2]
[394098295,1763278232337,-500.0,0.00016313,2]
[394098296,1763278232346,-500.0,0.00016313,2]
[394098297,1763278232356,-500.0,0.00016313,2]
[394098298,1763278232365,-519.01642397,0.00016313,2]
[394098299,1763278232375,-519.81957532,0.00016313,2]
[394098300,1763278232383,-501.25966784,0.00016373,2]
[394098301,1763278232392,-588.90929698,0.00016373,2]
[394098302,1763278232402,-501.55635846,0.00016373,2]
[394098303,1763278232411,-500.0,0.00016373,2]
[394098304,1763278232420,-504.41947256,0.00016373,2]
[394098305,1763278232430,-595.42749724,0.00016373,2]
[394098306,1763278232439,-361.68421052,0.00016373,2]
[394098307,1763278232448,-171.31783739,0.00016373,2]
[394098308,1763278232458,-500.0,0.00016373,2]
[394098309,1763278232467,-364.23750904,0.00016373,2]
[394098310,1763278232476,-500.0,0.00016373,2]
[394098311,1763278232485,-503.99434595,0.00016373,2]
[394098312,1763278232495,-500.0,0.00016373,2]
[394098313,1763278232509,-500.60732053,0.00016373,2]
[394098314,1763278232518,-500.0,0.00016373,2]
[394098315,1763278232527,-500.0,0.00016373,2]
[394098316,1763278232537,-500.0,0.00016373,2]
[394098317,1763278232547,-2840.13,0.00016388,2]
[394098318,1763278232556,-873.56,0.00016438,2]
[394098319,1763278232565,-500.0,0.00016513,2]
[394098320,1763278232576,-151.0,0.00016586,2]
[394098321,1763278232585,-166.65,0.00016597,2]
[394098322,1763278232595,-999.0,0.00016721,3]
[394098323,1763278232605,-150.0,0.000168,2]
[394098324,1763278232614,-1000.0,0.00016886,2]
[394098325,1763278232624,-265.42381006,0.00016921,2]
[394098326,1763278232634,-200.0,0.00016949,2]
[394098327,1763278232643,-160.76194697,0.00016973,2]
[394098328,1763278232653,-160.22729964,0.00016973,2]
[394098329,1763278232662,-503.80856067,0.00016973,2]
[394098330,1763278232672,-502.95601598,0.00016973,2]
[394098331,1763278232682,-507.23583524,0.00016973,2]
[394098332,1763278232692,-364.63563932,0.00016973,2]
[394098333,1763278232701,-536.25226774,0.00016973,2]
[394098334,1763278232711,-342.91851099,0.00016973,2]
[394098335,1763278232721,-504.96143204,0.00016973,2]
[394098336,1763278232730,-512.9641618,0.00016973,2]
[394098337,1763278232740,-163.94990031,0.00016973,2]
[394098338,1763278232749,-501.03855799,0.00016973,2]
[394098339,1763278232759,-500.0,0.00016976,2]
[394098340,1763278232768,-527.02812988,0.00016976,2]
[394098341,1763278232778,-326.42229768,0.00016976,2]
[394098342,1763278232787,-169.4,0.00016978,2]
[394098343,1763278232798,-300.0,0.00016986,2]
[394098344,1763278232807,-368.19186078,0.00016999,2]
[394098345,1763278232816,-300.0,0.00016999,2]
[394098346,1763278232826,-500.0,0.00017,7]
[394098347,1763278232836,-500.0,0.00017,7]
[394098348,1763278232845,-307.28,0.00017,7]
[394098349,1763278232855,-370.13,0.00017,7]
[394098350,1763278232864,-1000.0,0.00017,2]
[394098351,1763278232873,-1000.0,0.00017,2]
[394098352,1763278232883,-601750.8665385,0.00017,2]
[394098353,1763278232892,-151.0,0.00017059,2]
[394098354,1763278232901,-185.02774489,0.00017059,2]
[394098361,1763278239757,-309.05721434,0.00016273,2]
[394098362,1763278239772,-500.0,0.00016999,2]
[394098363,1763278239786,-500.0,0.00016999,2]
[394098364,1763278239800,-500.0,0.00016999,2]
[394098365,1763278239813,-382.44920829,0.00016999,2]
[394098366,1763278239827,-500.0,0.00016999,2]
[394098367,1763278239855,-500.0,0.00016999,2]
[394098368,1763278239875,-500.0,0.00016999,2]
[394098369,1763278239892,-500.0,0.00016999,2]
[394098370,1763278239909,-500.0,0.00016999,2]
[394098371,1763278239925,-500.0,0.00016999,2]
[394098372,1763278239941,-500.0,0.00016999,2]
[394098373,1763278239956,-500.0,0.00016999,2]
[394098374,1763278239972,-500.0,0.00016999,2]
[394098375,1763278239986,-491.19454123,0.00016999,2]
[394098376,1763278240013,-8.80545877,0.00016999,2]
[394098377,1763278240028,-500.0,0.00016999,2]
[394098378,1763278240042,-500.0,0.00016999,2]
[394098379,1763278240055,-500.0,0.00016999,2]
[394098380,1763278240069,-442.99778618,0.00016999,2]
[394098381,1763278240085,-57.00221382,0.00016999,2]
[394098382,1763278240098,-500.0,0.00016999,2]
[394098383,1763278240111,-64.97225511,0.00017059,2]
[394098384,1763278240125,-250.0,0.00017059,2]
[394098385,1763278240138,-250.0,0.00017059,2]
[394098386,1763278240151,-250.0,0.00017059,2]
[394098387,1763278240164,-250.0,0.00017059,2]
[394098388,1763278240183,-250.0,0.00017059,2]
[394098389,1763278240201,-250.0,0.00017059,2]
[394098390,1763278240217,-250.0,0.00017059,2]
[394098391,1763278240231,-250.0,0.00017059,2]
[394098392,1763278240246,-250.0,0.00017059,2]
[394098393,1763278240261,-250.0,0.00017059,2]
[394098394,1763278240276,-169.04537978,0.00017059,2]
[394098395,1763278240290,-250.0,0.00017059,2]
[394098396,1763278240304,-250.0,0.00017059,2]
[394098397,1763278240318,-250.0,0.00017059,2]
[394098398,1763278240332,-277.35679052,0.00017059,2]
[394098399,1763278240352,-250.0,0.00017059,2]
[394098400,1763278240367,-500.0,0.00017059,2]
[394098401,1763278240382,-151.0,0.00017059,2]
[394098402,1763278240397,-500.0,0.00017059,2]
[394098403,1763278240412,-574.12855637,0.00017059,2]
[394098404,1763278240426,-151.0,0.00017059,2]
[394098405,1763278240440,-151.0,0.00017059,2]
[394098406,1763278240454,-151.0,0.00017059,2]
[394098407,1763278240467,-151.0,0.00017059,2]
[394098408,1763278240481,-151.0,0.00017059,2]
[394098409,1763278240496,-151.0,0.00017059,2]
[394098410,1763278240514,-151.0,0.00017059,2]
[394098411,1763278240528,-151.0,0.00017059,2]
[394098412,1763278240543,-151.0,0.00017059,2]
[394098413,1763278240559,-151.0,0.00017059,2]
[394098414,1763278240573,-151.0,0.00017059,2]
[394098415,1763278240588,-151.0,0.00017059,2]
[394098416,1763278240599,-322.6107,0.00017059,2]
[394098417,1763278240609,-318.7,0.00017072,2]
[394098418,1763278240619,-169.4,0.00017178,2]
[394098419,1763278240630,-169.4,0.00017178,2]
[394098420,1763278240639,-8772.60011397,0.00017194,2]
[394098421,1763278240649,-13983.50017414,0.00017194,2]
[394098422,1763278240659,-169.4,0.00017378,2]
[394098423,1763278240669,-169.4,0.00017378,2]
[394098424,1763278240959,-150.0,0.000174,2]
[394098425,1763278240976,-166.65,0.00017471,2]
[394098426,1763278240986,-2000.0,0.000175,2]
[394098427,1763278240995,-300.0,0.00017586,2]
[394098428,1763278241004,-250.0,0.00017586,2]
[394098429,1763278241013,-301.22670242,0.00017586,2]
[394098430,1763278241023,-300.0,0.00017586,2]
[394098431,1763278241032,-300.0,0.00017586,2]
[394098432,1763278241042,-195.0,0.00017586,2]
[394098433,1763278241051,-250.0,0.00017586,2]
[394098434,1763278241060,-595.37131296,0.00017607,2]
[394098435,1763278241071,-239.14760503,0.00017607,2]
[394098436,1763278241080,-320.56,0.00017636,2]
[394098437,1763278241090,-168.0,0.00017651,2]
[394098438,1763278241099,-200.0,0.00017666,2]
[394098439,1763278241109,-300.0,0.00017667,2]
[394098440,1763278241118,-300.0,0.00017694,2]
[394098441,1763278241127,-300.0,0.00017722,2]
[394098442,1763278241137,-420.0,0.00017722,2]
[394098443,1763278241146,-300.0,0.00017725,2]
[394098444,1763278241155,-300.0,0.00017727,2]
[394098445,1763278241165,-168.0,0.00017727,2]
[394098446,1763278241175,-1000.0,0.00017738,2]
[394098447,1763278241184,-164.18539368,0.00017744,2]
[394098448,1763278241193,-300.0,0.00017745,2]
[394098449,1763278241202,-300.0,0.00017751,2]
[394098450,1763278241211,-207.26383671,0.00017752,2]
[394098451,1763278241220,-219.46254807,0.00017752,2]
[394098452,1763278241229,-500.0,0.00017752,2]
[394098453,1763278241238,-179.37891892,0.00017752,2]
[394098454,1763278241248,-300.0,0.00017752,2]
[394098455,1763278241257,-479.8880001,0.00017753,2]
[394098456,1763278241266,-550767.3071222,0.00017753,2]
[394098457,1763278241275,-12098.2263301,0.00017753,2]
[394098458,1763278241284,-35440.3590095,0.00017753,2]
[394098459,1763278241293,-154.259977,0.00017753,2]
[394098460,1763278241303,-151.0,0.00017753,2]
[394098461,1763278241312,-151.0,0.00017753,2]
[394098462,1763278241321,-151.0,0.00017753,2]
[394098463,1763278241331,-151.0,0.00017753,2]
[394098464,1763278241340,-151.0,0.00017753,2]
[394098465,1763278241349,-151.0,0.00017753,2]
[394098466,1763278241360,-151.0,0.00017753,2]
[394098467,1763278241369,-186.668261,0.00017753,2]
[394098468,1763278241378,-186.668261,0.00017753,2]
[394098469,1763278241387,-186.668261,0.00017753,2]
[394098470,1763278241397,-186.668261,0.00017753,2]
[394098471,1763278241406,-151.0,0.00017753,2]
[394098472,1763278241415,-151.0,0.00017753,2]
[394098473,1763278241425,-151.755537,0.00017753,2]
[394098474,1763278241434,-151.755537,0.00017753,2]
[394098475,1763278241443,-151.755537,0.00017753,2]
[394098476,1763278241452,-151.755537,0.00017753,2]
[394098477,1763278241462,-151.0,0.00017753,2]
[394098478,1763278241471,-152.896676,0.00017753,2]
[394098479,1763278241480,-151.0,0.00017753,2]
[394098480,1763278241489,-151.0,0.00017753,2]
[394098481,1763278241499,-151.0,0.00017753,2]
[394098482,1763278241511,-151.0,0.00017753,2]
[394098483,1763278241521,-151.0,0.00017753,2]
[394098484,1763278241530,-151.0,0.00017753,2]
[394098485,1763278241540,-334.897074,0.00017753,2]
[394098486,1763278241551,-151.0,0.00017753,2]
[394098487,1763278241560,-151.0,0.00017753,2]
[394098488,1763278241571,-151.0,0.00017753,2]
[394098489,1763278241581,-334.897074,0.00017753,2]
[394098490,1763278241590,-151.0,0.00017753,2]
[394098491,1763278241600,-334.897074,0.00017753,2]
[394098492,1763278241611,-151.0,0.00017753,2]
[394098493,1763278241620,-334.897074,0.00017753,2]
[394098494,1763278241630,-151.0,0.00017753,2]
[394098495,1763278241639,-151.0,0.00017753,2]
[394098496,1763278241648,-151.0,0.00017753,2]
[394098497,1763278241658,-151.0,0.00017753,2]
[394098498,1763278241667,-151.0,0.00017753,2]
[394098499,1763278241676,-165.666462,0.00017753,2]
[394098500,1763278241685,-151.0,0.00017753,2]
[394098501,1763278241695,-151.0,0.00017753,2]
[394098502,1763278241705,-174.497614,0.00017753,2]
[394098503,1763278241714,-151.0,0.00017753,2]
[394098504,1763278241724,-170.205742,0.00017753,2]
[394098505,1763278241734,-174.497614,0.00017753,2]
[394098506,1763278241744,-170.205742,0.00017753,2]
[394098507,1763278241754,-151.0,0.00017753,2]
[394098508,1763278241763,-174.497614,0.00017753,2]
[394098509,1763278241773,-151.0,0.00017753,2]
[394098510,1763278241782,-170.205742,0.00017753,2]
[394098511,1763278241792,-153.633799,0.00017753,2]
[394098512,1763278241801,-151.0,0.00017753,2]
[394098513,1763278241811,-174.497614,0.00017753,2]
[394098514,1763278241820,-170.205742,0.00017753,2]
[394098515,1763278241829,-151.0,0.00017753,2]
[394098516,1763278241839,-181.313631,0.00017753,2]
[394098517,1763278241848,-151.0,0.00017753,2]
[394098518,1763278241860,-154.892174,0.00017753,2]
[394098519,1763278241870,-154.892174,0.00017753,2]
[394098520,1763278241879,-151.0,0.00017753,2]
[394098521,1763278241888,-154.892174,0.00017753,2]
[394098522,1763278241898,-288.585584,0.00017753,2]
[394098523,1763278241907,-154.892174,0.00017753,2]
[394098524,1763278241915,-288.585584,0.00017753,2]
[394098525,1763278241925,-151.0,0.00017753,2]
[394098526,1763278241934,-288.585584,0.00017753,2]
[394098527,1763278241944,-234.216593,0.00017753,2]
[394098528,1763278241953,-288.585584,0.00017753,2]
[394098529,1763278241962,-151.0,0.00017753,2]
[394098530,1763278241971,-160.531221,0.00017753,2]
[394098531,1763278241981,-287.06785,0.00017753,2]
[394098532,1763278241990,-217.611013,0.00017753,2]
[394098533,1763278242000,-160.270929,0.00017753,2]
[394098534,1763278242009,-151.811139,0.00017753,2]
[394098535,1763278242019,-287.06785,0.00017753,2]
[394098536,1763278242028,-217.611013,0.00017753,2]
[394098537,1763278242037,-151.0,0.00017753,2]
[394098538,1763278242047,-151.0,0.00017753,2]
[394098539,1763278242056,-287.06785,0.00017753,2]
[394098540,1763278242066,-160.270929,0.00017753,2]
[394098541,1763278242076,-217.611013,0.00017753,2]
[394098542,1763278242085,-151.0,0.00017753,2]
[394098543,1763278242095,-287.06785,0.00017753,2]
[394098544,1763278242105,-160.270929,0.00017753,2]
[394098545,1763278242115,-258.427622,0.00017753,2]
[394098546,1763278242124,-217.611013,0.00017753,2]
[394098547,1763278242134,-151.0,0.00017753,2]
[394098548,1763278242144,-160.270929,0.00017753,2]
[394098549,1763278242153,-151.0,0.00017753,2]
[394098550,1763278242163,-258.427622,0.00017753,2]
[394098551,1763278242172,-286.716588,0.00017753,2]
[394098552,1763278242182,-286.716588,0.00017753,2]
[394098553,1763278242191,-151.0,0.00017753,2]
[394098554,1763278242201,-258.427622,0.00017753,2]
[394098555,1763278242210,-286.716588,0.00017753,2]
[394098556,1763278242220,-151.0,0.00017753,2]
[394098557,1763278242229,-501.82142704,0.00017773,2]
[394098558,1763278242245,-184.74437325,0.00017773,2]
[394098559,1763278242255,-337.06854993,0.00017773,2]
[394098560,1763278242264,-150.79490104,0.00017773,2]
[394098561,1763278242274,-162.47544706,0.00017773,2]
[394098562,1763278242283,-500.0,0.00017777,2]
[394098563,1763278242292,-500.0,0.0001779,2]
[394098564,1763278242302,-209.51434298,0.00017802,2]
[394098565,1763278242311,-421.960617,0.00017807,2]
[394098566,1763278242320,-458.52941409,0.00017807,2]
[394098567,1763278242330,-7036.5583318,0.00017808,2]
[394098568,1763278242339,-208.24,0.00017808,2]
[394098569,1763278242349,-888.79830231,0.00017808,2]
[394098570,1763278242359,-199.511,0.00017808,2]
[394098571,1763278242369,-1000.0,0.00017808,2]
[394098572,1763278242378,-1000.0,0.00017808,2]
[394098573,1763278242388,-433.022,0.00017808,2]
[394098574,1763278242398,-955.24042,0.00017808,2]
[394098575,1763278242407,-1680.0,0.00017811,2]
[394098576,1763278242417,-1000.0,0.00017813,2]
[394098577,1763278242426,-300.0,0.00017816,2]
[394098578,1763278242435,-2416.0,0.00017817,2]
[394098579,1763278242444,-300.0,0.00017846,2]
[394098580,1763278242454,-168.0,0.00017863,2]
[394098581,1763278242463,-300.0,0.00017868,2]
[394098582,1763278242472,-300.0,0.00017873,2]
[394098583,1763278242481,-150.0,0.00017885,2]
[394098584,1763278242491,-300.0,0.00017899,2]
[394098585,1763278242501,-868.09149396,0.000179,2]
[394098586,1763278242514,-683.94006132,0.000179,2]
[394098587,1763278242523,-300.0,0.0001791,2]
[394098588,1763278242533,-300.0,0.00017915,2]
[394098589,1763278242542,-1000.0,0.00017916,2]
[394098590,1763278242553,-168.0,0.00017916,2]
[394098591,1763278242562,-150.0,0.00017931,2]
[394098592,1763278242571,-166.66,0.00017962,2]
[394098593,1763278242581,-151.0,0.0001797,2]
[394098594,1763278242591,-151.0,0.0001797,2]
[394098595,1763278242600,-249.696658,0.0001797,2]
[394098596,1763278242611,-249.696658,0.0001797,2]
[394098597,1763278242620,-249.696658,0.0001797,2]
[394098598,1763278242630,-249.696658,0.0001797,2]
[394098599,1763278242639,-151.0,0.0001797,2]
[394098600,1763278242649,-153.877264,0.0001797,2]
[394098601,1763278242658,-151.0,0.0001797,2]
[394098602,1763278242668,-193.006912,0.0001797,2]
[394098603,1763278242678,-151.0,0.0001797,2]
[394098604,1763278242688,-151.0,0.0001797,2]
[394098605,1763278242697,-151.0,0.0001797,2]
[394098606,1763278242707,-151.0,0.0001797,2]
[394098607,1763278242717,-151.0,0.0001797,2]
[394098608,1763278242727,-151.0,0.0001797,2]
[394098609,1763278242737,-151.0,0.0001797,2]
[394098610,1763278242747,-165.104213,0.0001797,2]
[394098611,1763278242757,-307.712402,0.0001797,2]
[394098612,1763278242766,-329.406227,0.0001797,2]
[394098613,1763278242776,-307.712402,0.0001797,2]
[394098614,1763278242785,-329.406227,0.0001797,2]
[394098615,1763278242795,-307.712402,0.0001797,2]
[394098616,1763278242805,-329.406227,0.0001797,2]
[394098617,1763278242814,-307.712402,0.0001797,2]
[394098618,1763278242824,-329.406227,0.0001797,2]
[394098619,1763278242833,-151.0,0.0001797,2]
[394098620,1763278242842,-151.0,0.0001797,2]
[394098621,1763278242853,-151.0,0.0001797,2]
[394098622,1763278242862,-151.0,0.0001797,2]
[394098623,1763278242873,-214.412412,0.0001797,2]
[394098624,1763278242885,-508.2246355,0.00017973,2]
[394098625,1763278242894,-500.99618926,0.00017973,2]
[394098626,1763278242903,-501.84826476,0.00017973,2]
[394098627,1763278242912,-500.0,0.00017973,2]
[394098628,1763278242922,-474.82122033,0.00017973,2]
[394098629,1763278242931,-500.0,0.00017973,2]
[394098630,1763278242940,-164.00583255,0.00017973,2]
[394098631,1763278242949,-151.0,0.00017973,2]
[394098632,1763278242958,-151.0,0.00017973,2]
[394098633,1763278242967,-151.0,0.00017973,2]
[394098634,1763278242977,-151.0,0.00017973,2]
[394098635,1763278242986,-151.0,0.00017973,2]
[394098636,1763278242995,-151.0,0.00017973,2]
[394098637,1763278243004,-151.0,0.00017973,2]
[394098638,1763278243014,-168.0,0.00017981,2]
[394098639,1763278243023,-500.0,0.00017999,2]
[394098640,1763278243032,-289.28844386,0.00017999,2]
[394098641,1763278243041,-150.0,0.00018,2]
[394098642,1763278243051,-649762.03935296,0.00018,2]
[394098643,1763278243065,-10516.1254234,0.00018,2]
[394098644,1763278243081,-1456.533699,0.00017753,2]
[394098645,1763278243090,-4180.54089004,0.00018,2]
[394098646,1763278243107,-30749.31259467,0.00018,2]
[394098647,1763278243118,-321.43,0.00018,2]
[394098648,1763278243142,-480.4421224,0.00018,2]
[394098650,1763278243364,-258.427622,0.00017753,2]
[394098651,1763278243373,-151.0,0.00017753,2]
[394098652,1763278243382,-266.8237326,0.00017753,2]
[394098653,1763278243440,-1189.7099664,0.00017753,2]
[394098654,1763278243450,-265.276337,0.00017753,2]
[394098655,1763278243459,-286.716588,0.00017753,2]
[394098656,1763278243469,-151.0,0.00017753,2]
[394098657,1763278243478,-122.10543372,0.00018,2]
[394098658,1763278243492,-10207.11699808,0.00018,2]
[394098659,1763278243504,-687.47709491,0.00018,2]
[394098660,1763278246270,-151.0,0.00017753,2]
[394098661,1763278246280,-1456.533699,0.00017753,2]
[394098662,1763278246449,-265.276337,0.00017753,2]
[394098663,1763278246459,-1456.533699,0.00017753,2]
[394098664,1763278246469,-179.131774,0.000179,2]
[394098665,1763278246478,-1756.88749076,0.00018,2]
[394098709,1763278698764,168.84,0.00025185,120]
[394098726,1763278881046,999.58,0.00013699,2]
[394098728,1763278902870,680.0661132,0.0003,120]
[394098744,1763279191169,571726.22644576,0.00022,30]
[394098765,1763279340483,150.0,0.00030135,120]
[394098767,1763279355147,-411.428874,0.00015809,2]
[394098768,1763279355171,-683.705,0.00015889,2]
[394098769,1763279355194,-250.0,0.00015899,2]
[394098770,1763279355218,-166.66,0.00015909,2]
[394098771,1763279355241,-1200.0,0.00016143,2]
[394098772,1763279355264,-12717.37208167,0.00016144,2]
[394098773,1763279355287,-150.0,0.000162,2]
[394098774,1763279355314,-500.0,0.00016213,2]
[394098775,1763279355340,-500.0,0.00016213,2]
[394098776,1763279355365,-500.0,0.00016213,2]
[394098777,1763279355391,-500.0,0.00016213,2]
[394098778,1763279355416,-500.0,0.00016213,2]
[394098779,1763279355441,-500.0,0.00016213,2]
[394098780,1763279355466,-500.0,0.00016213,2]
[394098781,1763279355491,-188.24492083,0.00016213,2]
[394098782,1763279355514,-65.5891235,0.00016213,2]
[394098798,1763279432008,-434.4108765,0.00016213,2]
[394098799,1763279432018,-73.31050177,0.00016213,2]
[394098800,1763279432045,-164.01321778,0.00016213,2]
[394098801,1763279432055,-166.66,0.00016244,2]
[394098802,1763279432066,-501.82142704,0.00016273,2]
[394098803,1763279432076,-184.74437325,0.00016273,2]
[394098804,1763279432086,-300.0,0.00016299,2]
[394098805,1763279432095,-1200.0,0.00016299,2]
[394098806,1763279432104,-735.91385668,0.000163,2]
[394098807,1763279432115,-10536.31967395,0.000163,2]
[394098808,1763279432165,-1751.45862173,0.000163,2]
[394098809,1763279432176,-3537.69033031,0.000163,2]
[394098810,1763279432199,-331.96,0.000163,2]
[394098811,1763279432211,-11860.62708816,0.000163,2]
[394098812,1763279432223,-3357.00138532,0.000163,2]
[394098813,1763279432232,-289.28844386,0.00016313,2]
[394098815,1763279432242,-500.0,0.00016313,2]
[394098817,1763279432251,-421.960617,0.00016313,2]
[394098819,1763279432260,-458.52941409,0.00016313,2]
[394098821,1763279432269,-234.53702444,0.00016426,2]
[394098823,1763279432279,-166.66,0.00016579,2]
[394098824,1763279432288,-649.33,0.00016624,2]
[394098825,1763279432297,-1000.0,0.0001677,2]
[394098826,1763279432306,-168.84,0.0001679,2]
[394098827,1763279432322,-297.45,0.00016856,2]
[394098828,1763279432335,-166.66,0.00016914,2]
[394098829,1763279432345,-160.0,0.00016964,2]
[394098831,1763279432354,-500.0,0.00016973,2]
[394098833,1763279432364,-474.82122033,0.00016973,2]
[394098835,1763279432375,-508.2246355,0.00016973,2]
[394098837,1763279432385,-500.0,0.00016973,2]
[394098839,1763279432394,-501.84826476,0.00016973,2]
[394098841,1763279432404,-500.99618926,0.00016973,2]